bitfinex/quotes_ETHUSD_20250223
["timestamp","ask_amount","ask_price","bid_price","bid_amount"]
[1740327947987,2.84892,2808.1,2807.6,2.84939]
[1740327948170,2.849,2808.0,2807.5,0.69279182]
[1740327948797,2.84894,2808.1,2807.5,3.54227182]
[1740327949105,2.84901,2808.0,2807.5,3.54227182]
[1740327949275,2.84887,2808.2,2807.7,2.84928]
[1740327950794,5.39,2808.3,2807.7,6.33766518]
[1740327950980,8.23874,2808.3,2807.7,3.48838518]
[1740327951508,5.39,2808.3,2807.7,3.48838518]
[1740327951715,5.39,2808.3,2807.8,0.8125]
[1740327952006,5.39,2808.3,2808.2,2.84879]
[1740327952212,5.39,2808.3,2808.2,4.231059]
[1740327952771,2.85315,2808.9,2808.2,4.231059]
[1740327952980,0.005,2808.9,2808.3,2.84862]
[1740327953211,0.005,2808.9,2808.4,2.84852]
[1740327954009,0.005,2808.9,2808.5,2.84849]
[1740327954795,0.005,2808.9,2808.6,2.84837]
[1740327955024,0.005,2808.9,2808.5,3.418201]
[1740327955320,0.005,2808.9,2808.5,2.84841]
[1740327956005,0.005,2808.9,2808.6,2.84838]
[1740327956208,0.005,2808.9,2808.5,2.84841]
[1740327956414,0.005,2808.9,2808.6,2.84839]
[1740327956608,0.005,2808.9,2808.7,2.84823]
[1740327956812,0.005,2808.9,2808.8,0.284823]
[1740327959030,2.84825,2808.8,2808.2,1.382269]
[1740327959235,0.005,2808.9,2808.2,1.382269]
[1740327959406,2.84824,2808.8,2808.2,4.382269]
[1740327959924,2.84824,2808.8,2808.2,7.230979]
[1740327960122,0.7991,2808.9,2808.2,4.382269]
[1740327960329,0.7991,2808.9,2808.3,3.2868569]
[1740327960889,2.84832,2808.7,2808.3,0.4382269]
[1740327961089,0.7991,2808.9,2808.3,0.4382269]
[1740327961290,3.6472,2808.9,2808.3,3.2868269]
[1740327962024,3.64725,2808.9,2808.3,0.4382269]
[1740327962235,0.005,2808.9,2808.2,1.382269]
[1740327962529,0.005,2808.9,2808.5,2.84843]
[1740327962914,0.005,2808.9,2808.6,2.84835]
[1740327963292,0.005,2808.9,2808.5,2.84843]
[1740327963490,2.8531,2808.9,2808.3,2.84865]
[1740327963704,2.8531,2808.9,2808.4,0.4230919]
[1740327964023,0.005,2808.9,2808.4,0.4230919]
[1740327964228,0.005,2808.9,2808.6,2.84838]
[1740327964431,2.85312,2808.9,2808.2,4.230989]
[1740327964728,0.005,2808.9,2808.3,3.5717789]
[1740327965134,0.005,2808.9,2808.8,2.84819]
[1740327965434,0.005,2808.9,2808.8,3.64639]
[1740327966108,0.005,2808.9,2808.8,6.53705028]
[1740327966440,0.1522492,2809.9,2809.8,3.64537]
[1740327966604,0.1522492,2809.9,2809.8,9.53603028]
[1740327967290,9.2e-06,2809.9,2809.8,9.26703028]
[1740327967606,9.2e-06,2809.9,2809.8,9.53603028]
[1740327968220,9.2e-06,2809.9,2809.8,6.91437]
[1740327968531,0.005,2810.9,2810.8,4.19436]
[1740327968705,0.005,2810.9,2810.8,6.53602028]
[1740327968894,1.602153,2812.1,2811.2,2.84568]
[1740327969100,1.602153,2812.1,2811.4,2.84552]
[1740327969298,0.797753,2812.1,2811.9,2.84498]
[1740327969603,0.1522492,2812.8,2812.7,2.84424]
[1740327969821,0.1522492,2812.8,2812.6,3.11633]
[1740327970139,0.1022492,2812.8,2812.7,5.46590028]
[1740327970325,0.1022492,2812.8,2812.7,6.24710028]
[1740327970525,0.1022492,2812.8,2812.7,6.52110028]
[1740327970724,0.1022492,2812.8,2812.7,7.24181971]
[1740327970910,0.1022492,2812.8,2812.7,8.25044568]
[1740327971106,0.1022492,2812.8,2812.7,0.72071943]
[1740327971435,0.1022492,2812.8,2812.7,2.84424]
[1740327971645,0.1022492,2812.8,2812.7,6.10835766]
[1740327971791,0.1022492,2812.8,2812.7,6.38335766]
[1740327972000,0.1022492,2812.8,2812.7,10.71455766]
[1740327972294,0.1022492,2812.8,2812.7,12.07045343]
[1740327972540,0.1022492,2812.8,2812.3,3.02646226]
[1740327972541,0.1022492,2812.8,2812.3,0.7812]
[1740327972752,0.1022492,2812.8,2811.8,0.7812]
[1740327973043,2.9463992,2812.8,2811.8,4.04531766]
[1740327973213,0.1022492,2812.8,2811.8,4.04531766]
[1740327973410,0.1022492,2812.8,2812.1,3.26411766]
[1740327973608,0.1022492,2812.8,2812.7,7.43955766]
[1740327973836,0.1022492,2812.8,2812.7,10.71655766]
[1740327973998,0.005,2813.9,2812.9,2.84403]
[1740327974193,0.02,2814.8,2814.0,0.55]
[1740327974534,2.81191,2815.1,2814.4,2.84244]
[1740327974732,0.56536,2815.1,2814.3,3.26411766]
[1740327975044,0.56536,2815.1,2814.3,6.10669766]
[1740327975246,2.84202,2814.9,2814.3,0.279]
[1740327975543,2.84188,2815.1,2814.3,0.279]
[1740327975700,0.8303,2815.5,2814.2,0.282]
[1740327975894,0.29999267,2816.3,2814.2,0.282]
[1740327975895,0.8303,2815.9,2814.8,2.84201]
[1740327976096,0.8303,2815.9,2815.0,2.84182]
[1740327976097,2.84129,2815.7,2815.0,2.84182]
[1740327976412,0.8303,2816.7,2815.2,6.10576766]
[1740327976725,0.8303,2815.8,2814.5,0.7812]
[1740327977029,2.84292,2814.0,2813.6,3.26411766]
[1740327977196,0.9825492,2815.6,2813.7,4.3372]
[1740327977398,0.9825492,2815.6,2813.7,0.7812]
[1740327977631,2.84176,2815.2,2814.2,2.84272]
[1740327977840,2.84174,2815.2,2814.4,6.10661766]
[1740327978007,0.1522492,2815.6,2814.8,3.26411766]
[1740327978212,0.1522492,2815.6,2814.9,5.84194]
[1740327978407,0.1522492,2815.6,2814.9,3.0]
[1740327978644,2.84143,2815.5,2814.9,3.0]
[1740327978824,2.84188,2815.1,2814.0,3.55652733]
[1740327979021,2.84268,2814.3,2813.8,1.0672]
[1740327979238,2.84257,2814.4,2813.8,0.7812]
[1740327979396,2.84209,2814.9,2813.9,0.286]
[1740327979602,0.8303,2815.3,2814.1,3.26411766]
[1740327979947,2.84164,2815.3,2814.4,3.26411766]
[1740327980095,3.15574079,2815.3,2814.5,0.7812]
[1740327980301,2.84172,2815.2,2814.5,0.7812]
[1740327980543,2.8421,2814.9,2814.5,0.7812]
[1740327980918,3.15573079,2815.3,2814.5,0.7812]
[1740327981236,2.84172,2815.2,2814.5,0.7812]
[1740327981633,3.15732208,2815.2,2814.5,0.7812]
[1740327981936,0.1522492,2815.6,2815.0,3.26411766]
[1740327982099,0.1522492,2815.6,2815.5,6.10552766]
[1740327982908,0.1522492,2815.6,2815.4,0.7812]
[1740327983108,0.1522492,2815.6,2815.1,0.287]
[1740327983109,2.84141,2815.5,2815.1,0.287]
[1740327983432,0.1522492,2815.6,2815.1,3.55111766]
[1740327983616,0.1522492,2815.6,2815.2,2.8417]
[1740327983817,0.1522492,2815.6,2815.5,0.70073096]
[1740327984132,0.8303,2816.6,2815.5,0.70073096]
[1740327984133,1.09764278,2817.5,2815.7,2.84121]
[1740327984443,2.84028,2816.7,2815.8,4.33431766]
[1740327984642,2.84058,2816.4,2815.8,4.04531766]
[1740327984954,2.84083,2816.1,2815.9,0.289]
[1740327985170,2.841,2815.9,2815.2,0.7812]
[1740327985463,0.284058,2816.4,2815.5,3.26411766]
[1740327985626,0.284058,2816.4,2815.8,6.10520766]
[1740327985952,2.84063,2816.3,2815.9,0.8261]
[1740327986111,2.84054,2816.4,2815.9,0.8261]
[1740327986308,2.84029,2816.7,2815.6,0.29]
[1740327986513,0.55611545,2817.2,2816.6,2.84029]
[1740327986758,0.55611545,2817.2,2816.6,0.8261]
[1740327987047,0.55611545,2817.2,2816.2,0.8261]
[1740327987249,0.7571,2817.7,2816.2,0.8261]
[1740327987420,2.8398,2817.1,2816.3,3.24959177]
[1740327987625,2.83986,2817.1,2816.3,0.40902177]
[1740327987828,2.83963,2817.3,2816.3,3.24959177]
[1740327988024,2.83941,2817.5,2816.5,3.0]
[1740327988250,0.37571,2817.6,2816.5,3.0]
[1740327988251,2.83971,2817.2,2816.5,3.0]
[1740327988625,0.37571,2817.6,2816.5,3.0]
[1740327988939,0.7571,2817.7,2816.6,0.29]
[1740327989140,2.8399,2817.0,2816.2,0.8261]
[1740327989358,2.84054,2816.4,2816.2,0.8261]
[1740327989562,2.84054,2816.4,2815.9,0.29]
[1740327989746,2.84078,2816.2,2815.9,0.29]
[1740327989918,2.84054,2816.4,2815.9,0.29]
[1740327990373,2.84013,2816.8,2815.9,0.29]
[1740327990555,2.8406,2816.4,2815.9,0.29]
[1740327990856,0.71817703,2816.9,2816.4,0.7717]
[1740327991016,2.84008,2816.9,2816.4,0.7717]
[1740327991353,0.7811,2817.3,2816.4,0.7717]
[1740327991354,2.83983,2817.1,2816.4,0.7717]
[1740327991558,2.84001,2816.9,2816.4,0.7717]
[1740327991941,2.84027,2816.7,2816.4,0.7717]
[1740327992143,0.567984,2816.9,2815.8,0.7717]
[1740327992346,2.84063,2816.3,2815.8,0.7717]
[1740327992549,2.84082,2816.1,2815.8,0.7717]
[1740327993146,2.84063,2816.3,2815.2,2.8417]
[1740327993147,6.1711,2816.6,2815.2,0.7717]
[1740327993324,2.84152,2815.4,2815.2,0.7717]
[1740327993524,2.84184,2815.1,2814.8,0.7717]
[1740327993959,2.84201,2814.9,2814.6,0.292]
[1740327994263,2.84242,2814.5,2814.1,0.292]
[1740327994461,2.84233,2814.6,2814.1,0.292]
[1740327994766,2.84249,2814.5,2814.1,0.292]
[1740327994918,2.84253,2814.4,2814.1,0.292]
[1740327995123,2.84264,2814.3,2814.1,0.292]
[1740327995348,2.84249,2814.5,2814.1,0.292]
[1740327995658,2.84249,2814.5,2814.2,0.69800604]
[1740327996049,2.84262,2814.3,2814.2,0.69800604]
[1740327997059,3.62372,2814.3,2814.2,0.69800604]
[1740327997262,2.84319,2813.8,2813.2,4.83]
[1740327997662,2.84272,2814.2,2813.1,1.0637]
[1740327997825,2.84346,2813.5,2813.1,1.0637]
[1740327998161,2.84371,2813.3,2813.1,1.0637]
[1740327998366,2.84371,2813.3,2813.1,0.292]
[1740327998565,2.84371,2813.3,2812.7,0.7717]
[1740327998761,2.84404,2812.9,2812.7,0.7717]
[1740327998966,2.84387,2813.1,2812.3,2.84461]
[1740327999163,2.84387,2813.1,2812.5,2.84442]
[1740327999465,2.84364,2813.3,2812.8,0.72888299]
[1740327999642,0.7217636,2813.7,2812.8,0.72888299]
[1740327999643,2.8438,2813.2,2812.8,0.72888299]
[1740327999838,2.84398,2813.0,2812.8,0.72888299]
[1740328000059,2.84337,2813.6,2812.8,0.72888299]
[1740328000224,2.84387,2813.1,2812.8,0.72888299]
[1740328000427,2.84377,2813.2,2812.8,0.72888299]
[1740328000670,2.84355,2813.4,2812.8,3.57301299]
[1740328000968,2.84355,2813.4,2812.8,0.72888299]
[1740328001265,2.84364,2813.3,2812.8,0.72888299]
[1740328001567,2.84365,2813.3,2813.0,0.7717]
[1740328001743,2.84365,2813.3,2812.6,1.0957626]
[1740328001940,2.84383,2813.1,2812.6,1.0957626]
[1740328002137,2.84404,2812.9,2812.6,1.0957626]
[1740328002329,2.84404,2812.9,2812.6,0.3240626]
[1740328002528,2.84424,2812.7,2812.6,0.3240626]
[1740328002940,2.84434,2812.6,2812.5,0.3240626]
[1740328004277,2.84434,2812.6,2812.5,2.6e-06]
[1740328004626,3.62544,2812.6,2812.5,2.6e-06]
[1740328005033,3.62544,2812.6,2811.4,0.292]
[1740328005034,2.84525,2811.7,2811.6,0.51850016]
[1740328005227,2.84518,2811.8,2811.6,0.51850016]
[1740328005531,2.84525,2811.7,2811.6,0.51850016]
[1740328005877,4.211589,2811.7,2811.6,0.51850016]
[1740328006182,4.211589,2811.7,2811.6,1.6e-07]
[1740328006183,9.601589,2811.7,2811.6,1.6e-07]
[1740328006835,9.601589,2811.7,2810.4,0.71749197]
[1740328007036,2.84535,2811.6,2810.1,1.0617]
[1740328007267,2.84677,2810.2,2810.1,1.0617]
[1740328007502,2.84677,2810.2,2810.1,0.293]
[1740328007776,2.84664,2810.4,2810.1,0.293]
[1740328007930,2.84677,2810.2,2810.1,0.293]
[1740328008270,2.84677,2810.2,2809.7,0.7687]
[1740328008566,2.84678,2810.2,2809.7,1.928817]
[1740328008776,2.84697,2810.0,2809.7,1.928817]
[1740328008976,2.84699,2810.0,2809.7,0.7687]
[1740328009184,2.84678,2810.2,2809.7,0.7687]
[1740328009351,2.84687,2810.1,2809.7,0.7687]
[1740328010679,2.84689,2810.1,2809.3,1.0959]
[1740328010974,0.7973,2810.9,2809.4,0.59259]
[1740328010975,2.84616,2810.8,2809.4,0.59259]
[1740328011179,2.84716,2809.9,2809.4,0.59259]
[1740328011759,2.84721,2809.8,2809.4,0.59259]
[1740328012159,2.84721,2809.8,2809.2,4.83]
[1740328012529,2.84744,2809.6,2809.1,0.297]
[1740328012959,2.84744,2809.6,2809.1,0.005]
[1740328013559,2.84755,2809.5,2809.1,0.005]
[1740328013759,2.84759,2809.4,2809.1,0.005]
[1740328013967,2.84724,2809.8,2809.1,0.005]
[1740328014176,2.84748,2809.5,2809.1,0.005]
[1740328014579,2.8476,2809.4,2809.1,0.005]
[1740328014981,2.84748,2809.5,2809.1,0.005]
[1740328015675,5.69505,2809.5,2809.1,0.005]
[1740328016200,2.84748,2809.5,2809.1,0.005]
[1740328016500,5.39,2810.0,2809.1,0.399891]
[1740328016697,2.84717,2809.9,2809.3,2.84768]
[1740328017285,8.237,2810.0,2809.3,2.84768]
[1740328017596,2.84714,2809.9,2809.3,2.84767]
[1740328018701,2.84719,2809.8,2809.2,7.67777]
[1740328018870,2.84677,2810.2,2809.2,5.598277]
[1740328019072,2.84704,2810.0,2809.2,7.67778]
[1740328019401,2.84719,2809.8,2809.2,7.67778]
[1740328019579,2.84719,2809.8,2809.2,4.83]
[1740328019780,2.84719,2809.8,2809.3,2.84768]
[1740328019976,2.84701,2810.0,2809.3,2.84768]
[1740328020209,2.84701,2810.0,2809.4,2.84757]
[1740328020372,2.84701,2810.0,2809.2,7.67768]
[1740328020572,2.84719,2809.8,2809.2,7.67768]
[1740328020890,2.84701,2810.0,2809.4,2.84751]
[1740328021091,2.84701,2810.0,2809.4,5.69501]
[1740328021305,2.84701,2810.0,2809.4,2.8475]
[1740328021475,2.84716,2809.9,2809.2,8.446018]
[1740328021675,2.84701,2810.0,2809.4,2.84752]
[1740328022210,2.84691,2810.1,2809.5,2.79741]
[1740328022405,0.7814,2810.6,2809.9,2.84705]
[1740328022622,0.7814,2810.6,2809.7,2.84721]
[1740328022623,2.84664,2810.4,2809.7,2.84721]
[1740328022789,5.69329,2810.4,2809.7,2.84721]
[1740328022989,2.84669,2810.3,2809.7,2.84721]
[1740328023196,2.84669,2810.3,2809.8,2.84715]
[1740328023907,3.62781,2810.6,2809.9,2.84701]
[1740328024414,3.62781,2810.6,2810.0,2.84694]
[1740328024792,0.7814,2810.6,2810.2,2.84675]
[1740328024993,2.84621,2810.8,2810.2,2.84675]
[1740328024994,2.84621,2810.8,2810.2,2.84674]
[1740328025382,2.84621,2810.8,2810.0,0.8039]
[1740328025583,2.84621,2810.8,2810.0,3.6508]
[1740328025883,2.84627,2810.7,2810.1,2.84681]
[1740328026803,0.7814,2811.0,2810.0,0.8039]
[1740328027009,0.94378136,2810.9,2810.0,0.8039]
[1740328027210,3.6652,2811.3,2810.6,2.84633]
[1740328028221,2.84586,2811.1,2810.4,2.84648]
[1740328028419,2.84596,2811.0,2810.4,2.84648]
[1740328029184,2.84586,2811.1,2810.4,2.84648]
[1740328029526,2.84618,2810.8,2810.2,2.84672]
[1740328029700,2.84618,2810.8,2810.1,3.13478]
[1740328029900,2.84618,2810.8,2809.6,3.11441116]
[1740328029901,2.84675,2810.3,2809.8,0.289]
[1740328030108,2.84689,2810.1,2809.6,1.08232116]
[1740328030291,2.84689,2810.1,2809.6,0.8152]
[1740328030491,2.84689,2810.1,2809.5,0.289]
[1740328030992,2.84698,2810.0,2809.5,0.289]
[1740328031502,2.84689,2810.1,2809.5,0.289]
[1740328031703,2.84708,2809.9,2809.5,0.289]
[1740328031930,2.84653,2810.5,2809.5,1.165438]
[1740328032104,2.84633,2810.7,2810.0,2.84691]
[1740328032315,2.84633,2810.7,2810.0,5.6938]
[1740328032697,2.84633,2810.7,2809.7,4.83]
[1740328032698,2.84598,2811.0,2810.4,2.84653]
[1740328032900,2.84614,2810.9,2810.3,3.64446]
[1740328033101,3.51057,2811.3,2810.5,2.84642]
[1740328033394,2.84557,2811.4,2810.8,2.84615]
[1740328034143,2.84557,2811.4,2810.7,2.84624]
[1740328034144,2.84557,2811.4,2810.7,5.69241]
[1740328034344,2.84568,2811.3,2810.6,0.32635028]
[1740328034540,2.84547,2811.5,2810.8,2.84615]
[1740328034856,2.84547,2811.5,2810.8,3.44797303]
[1740328034995,2.84546,2811.5,2810.8,3.44797303]
[1740328035639,5.39,2811.6,2810.9,0.84990533]
[1740328035801,2.84596,2811.0,2810.9,0.84990533]
[1740328037337,2.84596,2811.0,2810.9,0.32635028]
[1740328038106,2.84606,2810.9,2809.5,0.72739321]
[1740328038402,2.84626,2810.7,2809.5,2.84747]
[1740328038732,2.84664,2810.4,2809.7,2.84722]
[1740328039034,5.39,2810.7,2809.8,3.63533]
[1740328039239,5.39,2810.7,2810.2,2.84668]
[1740328039402,5.39,2810.7,2809.8,0.7882]
[1740328039607,6.414389,2811.7,2810.6,2.84636]
[1740328039608,2.84569,2811.3,2810.6,2.84636]
[1740328039859,2.84576,2811.2,2810.6,2.84636]
[1740328040149,2.84592,2811.1,2810.5,0.7882]
[1740328040443,2.84592,2811.1,2810.5,3.63466]
[1740328040606,2.84592,2811.1,2810.5,3.63462]
[1740328040925,0.8067,2811.4,2810.5,0.7882]
[1740328041124,5.39,2811.6,2811.1,2.84584]
[1740328041363,5.39,2811.6,2811.3,2.84559]
[1740328041625,0.8171,2812.0,2811.3,2.84559]
[1740328041838,2.84465,2812.3,2811.6,2.84528]
[1740328042011,2.84465,2812.3,2811.7,2.84524]
[1740328042600,0.8171,2812.4,2811.7,2.84524]
[1740328042800,0.005,2812.6,2811.6,3.63685]
[1740328043138,0.005,2812.6,2812.2,2.84473]
[1740328043437,0.005,2812.6,2812.0,2.84492]
[1740328043438,2.84934,2812.6,2812.0,2.84492]
[1740328043741,0.005,2812.6,2812.1,2.84484]
[1740328044216,0.005,2812.6,2812.0,2.84492]
[1740328045161,0.005,2812.6,2812.1,1.075992]
[1740328045358,0.005,2812.6,2812.2,2.84464]
[1740328045564,0.005,2812.6,2812.3,2.84463]
[1740328045770,0.005,2812.6,2812.1,3.63628]
[1740328045979,0.005,2812.6,2812.1,0.7915]
[1740328046479,0.005,2812.6,2812.1,3.63634]
[1740328046627,0.005,2812.6,2812.1,0.7915]
[1740328047478,0.005,2812.6,2812.5,6.62294]
[1740328047679,1e-05,2812.6,2812.5,7.46094]
[1740328048182,1e-05,2812.6,2812.5,21.09094]
[1740328048931,1e-05,2812.6,2812.5,20.80294]
[1740328049077,1e-05,2812.6,2812.5,21.09094]
[1740328049388,1e-05,2812.6,2812.5,23.85870501]
[1740328049589,1e-05,2812.6,2812.5,23.57070501]
[1740328049886,1e-05,2812.6,2812.5,21.09194]
[1740328050082,1e-05,2812.6,2812.5,20.80294]
[1740328050282,1e-05,2812.6,2812.5,21.09094]
[1740328050484,0.6969699,2813.8,2813.5,2.84336]
[1740328050684,0.6969699,2813.8,2813.5,3.63456]
[1740328052455,0.6969699,2813.8,2813.5,0.7912]
[1740328052875,0.7717,2814.9,2813.7,3.55]
[1740328053099,5.39,2815.1,2814.2,3.63389]
[1740328053100,8.23183,2815.1,2814.2,3.63389]
[1740328053260,3.56875854,2814.8,2814.2,3.63389]
[1740328053611,2.84222,2814.7,2814.2,0.7912]
[1740328053913,2.79222,2814.7,2814.2,0.7912]
[1740328054069,0.72663854,2814.8,2814.2,3.63383]
[1740328054493,2.84208,2814.9,2814.2,3.63383]
[1740328054700,2.84222,2814.7,2814.2,0.7912]
[1740328055257,2.84225,2814.7,2814.2,0.7912]
[1740328055495,2.84249,2814.5,2813.9,0.8248]
[1740328055680,2.84223,2814.7,2813.9,0.8248]
[1740328055681,2.84223,2814.7,2814.0,2.8429]
[1740328055992,2.84234,2814.6,2814.0,2.8429]
[1740328056300,2.84257,2814.4,2813.9,0.8248]
[1740328056599,2.84257,2814.4,2813.7,5.119]
[1740328057101,2.84279,2814.2,2813.7,5.119]
[1740328057280,2.84256,2814.4,2813.8,2.84312]
[1740328057486,2.84299,2814.0,2813.7,4.83]
[1740328057698,2.84208,2814.9,2814.1,2.84276]
[1740328057898,2.84208,2814.9,2814.1,7.67276]
[1740328058101,0.8286,2815.2,2814.1,4.83]
[1740328058305,2.84272,2814.2,2814.1,4.83]
[1740328058486,2.84272,2814.2,2813.4,11.6435]
[1740328058487,2.84295,2814.0,2813.5,7.67342]
[1740328058822,2.84254,2814.4,2813.6,2.84332]
[1740328059118,2.8428,2814.2,2813.6,2.84332]
[1740328059314,2.84283,2814.1,2813.6,2.84332]
[1740328059475,2.84283,2814.1,2813.5,5.9448]
[1740328059671,0.69995267,2814.2,2813.5,1.1148]
[1740328059877,2.84309,2813.9,2813.5,0.8248]
[1740328060827,2.84299,2814.0,2813.5,0.8248]
[1740328060978,3.48156027,2814.0,2813.5,0.8248]
[1740328061522,3.48156027,2814.0,2813.4,2.84348]
[1740328061702,3.48156027,2814.0,2813.3,2.84362]
[1740328061908,2.84304,2813.9,2813.3,2.84362]
[1740328062212,2.84326,2813.7,2813.2,5.6548]
[1740328062414,2.84334,2813.6,2813.2,4.83]
[1740328062779,2.84334,2813.6,2812.4,2.84453]
[1740328062780,2.84354,2813.4,2812.7,4.83]
[1740328063097,0.651513,2813.6,2813.1,0.69831577]
[1740328063300,5.68721,2813.4,2813.1,0.69831577]
[1740328063493,2.84359,2813.4,2812.7,5.119]
[1740328063719,2.84374,2813.2,2812.7,4.83]
[1740328063974,5.39,2813.7,2812.3,0.8248]
[1740328064083,2.84398,2813.0,2812.4,2.84447]
[1740328064288,0.8286,2813.1,2812.4,2.84447]
[1740328064823,3.67245,2813.1,2812.5,2.84435]
[1740328065123,2.84394,2813.0,2812.5,2.84435]
[1740328066019,3.67246,2813.1,2812.5,2.84435]
[1740328066216,2.84395,2813.0,2812.5,2.84435]
[1740328066426,0.8286,2813.1,2812.5,2.84435]
[1740328066783,3.67246,2813.1,2812.5,2.84435]
[1740328066999,8.23328,2813.7,2812.6,4.107435]
[1740328067000,8.23324,2813.7,2812.6,4.107435]
[1740328067282,0.7777,2813.4,2812.6,0.823]
[1740328067483,5.39,2813.7,2813.2,2.84366]
[1740328067729,3.62038,2814.3,2813.7,2.84322]
[1740328068137,3.62038,2814.3,2813.5,2.8434]
[1740328068322,2.84283,2814.1,2813.5,2.8434]
[1740328068519,4.521418,2814.3,2813.5,2.84335]
[1740328068703,2.84264,2814.3,2813.7,2.84322]
[1740328068908,2.84279,2814.2,2813.5,2.84336]
[1740328069347,2.84246,2814.5,2813.7,2.84315]
[1740328069555,2.84271,2814.3,2813.7,2.84315]
[1740328069956,2.84244,2814.5,2813.8,2.84312]
[1740328070125,3.51492889,2814.5,2813.8,2.84312]
[1740328070308,3.51492889,2814.5,2813.3,4.08661165]
[1740328070309,0.7814,2815.1,2813.9,0.7762]
[1740328070513,2.84241,2814.6,2813.9,0.7762]
[1740328070819,2.84241,2814.6,2813.9,3.61914]
[1740328071049,2.84253,2814.4,2813.9,0.7762]
[1740328071453,2.84313,2813.8,2813.4,4.83]
[1740328071647,2.84273,2814.2,2813.3,0.7762]
[1740328071942,3.205143,2814.2,2813.5,5.6867]
[1740328072147,0.7814,2814.3,2813.8,2.84309]
[1740328072325,2.84253,2814.4,2813.8,2.84309]
[1740328074055,3.62373,2814.6,2813.4,4.83]
[1740328074056,2.84311,2813.9,2813.4,4.83]
[1740328074347,2.84287,2814.1,2813.4,7.67347]
[1740328074546,2.84287,2814.1,2813.4,8.518427]
[1740328074748,2.84264,2814.3,2813.7,5.68632]
[1740328074912,2.84245,2814.5,2813.9,2.84297]
[1740328075112,3.62372,2814.6,2813.9,2.84297]
[1740328075425,2.84248,2814.5,2813.9,2.84297]
[1740328075608,1.18562,2814.5,2813.9,2.84297]
[1740328075810,2.84252,2814.4,2813.7,2.84315]
[1740328076221,2.84252,2814.4,2813.8,2.84309]
[1740328076714,2.84263,2814.3,2813.7,2.84315]
[1740328077615,2.84252,2814.4,2813.7,2.84315]
[1740328077931,2.8426,2814.4,2813.7,2.84313]
[1740328078235,2.84264,2814.3,2813.7,2.84313]
[1740328078452,2.84264,2814.3,2813.7,5.68628]
[1740328079005,6.87057,2814.5,2813.5,0.32692135]
[1740328079112,6.87056,2814.5,2813.8,2.84307]
[1740328079315,1.18562,2814.5,2814.0,2.84283]
[1740328079516,8.23173,2815.2,2813.6,0.60018884]
[1740328079517,0.7814,2815.0,2814.5,2.8424]
[1740328080046,2.84208,2814.9,2814.3,2.8426]
[1740328080240,3.62341,2815.0,2814.3,2.8426]
[1740328080443,3.62341,2815.0,2814.4,2.84244]
[1740328080760,2.84208,2814.9,2814.2,4.83]
[1740328080928,2.84221,2814.8,2814.2,4.83]
[1740328081127,0.646549,2814.9,2814.2,4.83]
[1740328081334,3.62336,2815.0,2814.4,2.84249]
[1740328081547,2.84208,2814.9,2814.3,5.68507]
[1740328081748,0.7814,2815.0,2814.2,4.83]
[1740328082064,2.84262,2814.3,2814.2,4.83]
[1740328082231,2.84258,2814.4,2813.7,8.73636]
[1740328082438,2.84235,2814.6,2814.0,2.84289]
[1740328082783,2.84262,2814.3,2813.8,2.84305]
[1740328082964,2.84248,2814.5,2813.8,5.6861]
[1740328083253,2.84252,2814.4,2813.8,3.17006846]
[1740328083461,5.68511,2814.4,2813.8,3.17005846]
[1740328083660,2.84275,2814.2,2813.8,0.32701846]
[1740328084034,0.568511,2814.4,2813.8,3.17013846]
[1740328084241,2.84247,2814.5,2813.8,3.17007846]
[1740328084443,0.7814,2815.0,2813.8,3.17006846]
[1740328084661,2.84248,2814.5,2814.0,2.84288]
[1740328084849,2.84252,2814.4,2813.8,3.17006846]
[1740328085257,2.84265,2814.3,2813.8,0.32701846]
[1740328085462,2.84274,2814.2,2813.8,0.32701846]
[1740328085660,2.84289,2814.1,2813.8,0.32701846]
[1740328085838,2.84292,2814.0,2813.8,0.32701846]
[1740328086034,2.84302,2813.9,2813.8,0.32701846]
[1740328086239,0.568539,2814.2,2813.8,0.32701846]
[1740328086439,0.8221,2814.3,2813.8,0.32701846]
[1740328087170,0.8221,2814.3,2813.7,2.84315]
[1740328087746,2.84251,2814.5,2813.9,2.84296]
[1740328088382,2.84252,2814.4,2813.9,2.84296]
[1740328088675,2.84236,2814.6,2814.0,2.84285]
[1740328088851,2.84244,2814.5,2813.9,2.84296]
[1740328089049,2.84252,2814.4,2813.9,2.84296]
[1740328089253,2.84244,2814.5,2813.9,2.84296]
[1740328089574,2.84259,2814.4,2813.7,2.84321]
[1740328089939,0.905446,2814.6,2813.4,4.83]
[1740328090294,5.68556,2814.2,2813.4,4.83]
[1740328090592,2.84277,2814.2,2813.5,2.84334]
[1740328090745,0.7117546,2814.5,2813.6,0.32693062]
[1740328090944,2.84261,2814.4,2813.8,2.84311]
[1740328091181,2.84261,2814.4,2813.8,2.8431]
[1740328091682,0.7117546,2814.5,2813.6,0.32693062]
[1740328091865,2.84248,2814.5,2814.0,0.776]
[1740328092070,9.05439,2814.7,2814.0,3.61885]
[1740328092380,2.84232,2814.6,2814.0,3.61885]
[1740328092545,2.84258,2814.4,2813.8,2.84312]
[1740328092745,2.84232,2814.6,2813.7,1.10293062]
[1740328093057,2.84245,2814.5,2813.8,2.84304]
[1740328093569,2.84232,2814.6,2814.1,2.84281]
[1740328093884,9.05433,2814.7,2814.1,2.84281]
[1740328094406,6.2121,2814.7,2814.1,2.84281]
[1740328094909,2.84233,2814.6,2814.1,2.84281]